Cogmind - Beta 16.1 @@@ ROGUE MODE // 2026.03.13 @ 11:21:57 Player: zer0hour Result: Destroyed by G-47 Trooper with Particle Gun Performance ------------- Evolutions (2) 1000 Regions Visited (6) 1200 Robots Destroyed (59) 295 Value Destroyed (1918) 1918 Prototype IDs (6) 120 Alien Tech Used (0) 0 Bonus (89) 89 TOTAL SCORE: 4622 Bonus ------- High Alert Combat Kills 33 Follower Combat Kills 56 Cogmind --------- Core Integrity 0/550 Matter 286/300 Energy 66/100 System Corruption 1% Temperature Warm (176) Movement Treading (160) Location -8/Storage Parts ------- > --- POWER (1) -------- (None) > --- PROPULSION (4) --- Light Treads Light Treads Light Treads Light Treads > --- UTILITY (4) ------ Large Storage Unit > --- WEAPON (2) ------- Pulse Rifle Minigun > --- INVENTORY (15) --- Ion Engine Large Storage Unit Heavy Assault Rifle Heavy Assault Rifle Heavy Assault Rifle Shock Bomb Launcher Grenade Launcher Rocket Launcher Peak State ------------ > --- POWER ------------ Improved Ion Engine > --- PROPULSION ------- Aluminum Leg Aluminum Leg Aluminum Leg Titanium Leg > --- UTILITY ---------- Medium Storage Unit Improved Medium Armor Plating Improved Field Recycling Unit Drone Bay > --- WEAPON ----------- Plasma Cannon Heavy Assault Rifle > --- INVENTORY -------- Ion Engine Large Storage Unit Large Storage Unit Pulse Rifle Advanced Beam Cannon Plasma Cannon Grenade Launcher Rocket Launcher [Rating: 29] Favorites ----------- Power Ion Engine Engine Ion Engine Propulsion Aluminum Leg Treads Light Treads Leg Aluminum Leg Hover Unit Cooled Aerolev Unit Flight Unit Improved VTOL Module Utility Small Storage Unit Device Improved Field Recycling Unit Storage Small Storage Unit Protection Improved Medium Armor Plating Weapon Shotgun Energy Gun Medium Laser Energy Cannon Plasma Cannon Ballistic Gun Shotgun Ballistic Cannon Assault Cannon Launcher Rocket Launcher Build | -11 -10 -10 -10 -9 -8 -8 ------- Run | Yrd Mat Min Exi Min Mat Sto Slots Evolved 4 | . . . . . 4 . Power . | . . . . . . . Propulsion 2 | . . . . . 2 . Utility 2 | . . . . . 2 . Weapon . | . . . . . . . Parts Attached 57 | 6 1 2 . 2 29 17 Power 7 | 1 . 1 . . 4 1 Engine 7 | 1 . 1 . . 4 1 Core . | . . . . . . . Reactor . | . . . . . . . Propulsion 18 | 2 . . . 2 7 7 Treads 4 | . . . . . . 4 Leg 12 | 2 . . . 2 6 2 Wheel . | . . . . . . . Hover 1 | . . . . . . 1 Flight 1 | . . . . . 1 . Utility 14 | 1 1 . . . 8 4 Device 5 | . . . . . 3 2 Storage 6 | 1 1 . . . 3 1 Processor . | . . . . . . . Hackware . | . . . . . . . Protection 3 | . . . . . 2 1 Artifact . | . . . . . . . Weapon 18 | 2 . 1 . . 10 5 Energy Gun 3 | 1 . . . . 2 . Energy Cannon 3 | . . . . . . 3 Ballistic Gun 9 | 1 . 1 . . 5 2 Ballistic Cannon 1 | . . . . . 1 . Launcher 2 | . . . . . 2 . Special Weapon . | . . . . . . . Impact Weapon . | . . . . . . . Slashing Weapon . | . . . . . . . Piercing Weapon . | . . . . . . . Special Melee Weapon . | . . . . . . . Unidentified Prototypes 4 | . . . . . 2 2 Parts Lost 23 | . . 1 . 1 6 15 Power 3 | . . . . . 1 2 Propulsion 8 | . . . . 1 1 6 Utility 5 | . . . . . 2 3 Weapon 7 | . . 1 . . 2 4 Highest Loss Streak 7 | . . 1 . 1 2 7 To Critical Strikes . | . . . . . . . Average Backups 7 | . 6 7 8 8 7 8 Power 1 | . 1 . 1 1 . 1 Propulsion . | . . . . . . . Utility . | . . 1 1 1 . 1 Weapon 5 | . 4 5 6 5 5 4 Tool/Special . | . . . . . . . Unused Backups 7 | . . . . 1 4 2 Power . | . . . . . . . Propulsion . | . . . . . . . Utility 2 | . . . . . 1 1 Weapon 5 | . . . . 1 3 1 Tool/Special . | . . . . . . . Average Slot Usage (%) 92 | . 94 100 100 87 96 82 Engine 10 | . 13 14 14 14 9 6 Leg 27 | . 25 28 28 15 34 24 Device 8 | . . . . . 16 8 Storage 16 | . 26 28 28 28 10 9 Protection 5 | . . . . . 7 12 Energy Gun 7 | . 13 14 14 14 4 1 Energy Cannon 1 | . . . . . . 7 Ballistic Gun 11 | . 12 14 14 14 10 8 Ballistic Cannon 1 | . . . . . 3 . Peak Build Rating 29 | 6 8 9 9 9 28 29 Average Rating 17 | 4 7 8 9 8 24 20 On Entrance 9 | . 6 8 9 9 9 26 Avg Prop Armor Cover (%) . | . . . . . . . Naked Turns . | . . . . . . . Heaviest Build 52 | 14 17 18 18 18 45 52 Greatest Support 80 | 20 20 20 20 20 52 80 Greatest Overweight (x) 8 | 3 5 . . 1 1 8 Average Overweight (x) . | . . . . . . . Largest Inventory Capacity 15 | 8 8 8 8 8 10 15 Average Capacity 8 | 7 8 8 8 8 8 10 Most Carried 10 | 2 8 8 8 8 10 10 Average Carried 7 | . 6 7 8 7 7 8 Final Capacity 15 | 8 8 8 8 8 10 15 Final Carried 9 | 2 8 8 8 8 9 8 Class Distribution -------------------- 59% | Mutant 40% | Scavenger-Mutant Dominant Class ---------------- Mutant | -10/Materials Mutant | -10/Mines Mutant | -10/Exiles Mutant | -9/Mines Scavenger-Mutant | -8/Materials Scavenger-Mutant | -8/Storage Resources | -11 -10 -10 -10 -9 -8 -8 ----------- Run | Yrd Mat Min Exi Min Mat Sto Matter Collected 2086 | 240 171 325 . 39 903 408 Remotely . | . . . . . . . Salvage Created 2005 | . 128 39 . 34 1013 791 Parts 105 | . 7 1 . 9 50 38 Haulers Intercepted . | . . . . . . . Recyclers Shooed 4 | . . 1 . . 2 1 Parts Field Recycled 16 | . . . . . 12 4 Retrieved Matter 116 | . . . . . 66 50 Parts Self-Destructed . | . . . . . . . Prevented . | . . . . . . . Parts Restored . | . . . . . . . Kills | -11 -10 -10 -10 -9 -8 -8 ------- Run | Yrd Mat Min Exi Min Mat Sto Combat Hostiles Destroyed 49 | . 3 3 . 3 28 12 Guns 32 | . 3 3 . 3 17 6 Cannons 15 | . . . . . 10 5 AOE 1 | . . . . . 1 . Classes Destroyed 12 | . 1 1 . . 8 2 Worker 1 | . . . . . . 1 Builder 2 | . . . . . 1 1 Recycler 3 | . . . . . . 3 Operator 1 | . . . . . 1 . Watcher 3 | . . . . . 2 1 Swarmer 14 | . . 3 . 3 5 3 Grunt 18 | . 3 . . . 11 4 Brawler 1 | . . . . . 1 . Duelist 1 | . . . . . 1 . Sentry 12 | . . . . . 7 5 Specialist 2 | . . . . . 2 . Heavy 1 | . . . . . 1 . Best Kill Streak 8 | . 2 3 . 3 6 8 Combat Bots Only 6 | . 2 3 . 3 6 4 Max Kills in Single Turn 2 | . 1 1 . 1 1 2 Gunslinging . | . . . . . . . Exploded 1 | . . . . . 1 . Melee . | . . . . . . . Uniques/NPCs Destroyed . | . . . . . . . Combat | -11 -10 -10 -10 -9 -8 -8 -------- Run | Yrd Mat Min Exi Min Mat Sto Hostile Shots Fired 355 | . 5 36 . 19 184 111 Missed 80 | . 2 3 . 7 51 17 Hits 275 | . 3 33 . 12 133 94 Melee 4 | . . . . . 4 . Projectile 271 | . 3 33 . 12 129 94 Critical Strikes 5 | . . . . . 3 2 Damage Taken 4006 | . 44 269 . 97 2192 1404 Core 615 | . . 49 . 15 252 299 Absorbed by Shields . | . . . . . . . Regen/Repaired (Parts) 435 | . . . . . 435 . Core Remaining (%) 87 | 100 . . . 74 . . Volleys Fired 172 | . 9 13 . 6 93 51 Largest 2 | . 2 2 . 2 2 2 Hottest 160 | . 70 73 . 73 88 160 Shots Fired 318 | . 18 25 . 12 180 83 Gun 220 | . 18 25 . 12 117 48 Cannon 86 | . . . . . 51 35 Launcher 12 | . . . . . 12 . Special . | . . . . . . . Kinetic 208 | . 9 12 . 6 144 37 Thermal 98 | . 9 13 . 6 24 46 Explosive 12 | . . . . . 12 . Electromagnetic . | . . . . . . . Robot Hit Streak 15 | . 10 11 . 3 11 15 Robot Miss Streak 5 | . 2 2 . 4 5 5 Penetration Max . | . . . . . . . Secondary Targets 5 | . . . . 1 2 2 Max Gunslinging Chain 1 | . . . . 1 1 1 Shots Hit Robots 219 | . 13 19 . 5 128 54 Core Hits 103 | . 6 3 . 4 66 24 Critical Kills 1 | . . . . . . 1 Critical Parts Destroyed 1 | . . . . . 1 . Critical Strikes 6 | . 1 . . . 4 1 Burn 1 | . 1 . . . . . Meltdown 1 | . . . . . . 1 Destroy 1 | . . . . . 1 . Blast 3 | . . . . . 3 . Melee Attacks . | . . . . . . . Impact . | . . . . . . . Slashing . | . . . . . . . Piercing . | . . . . . . . Sneak Attacks . | . . . . . . . Combat Hostiles . | . . . . . . . Follow-up Attacks . | . . . . . . . Damage Inflicted 4139 | . 160 231 . 73 2493 1182 Guns 2498 | . 160 231 . 65 1554 488 Cannons 1391 | . . . . . 697 694 Explosions 242 | . . . . . 242 . Melee . | . . . . . . . Ramming 8 | . . . . 8 . . Kinetic 2497 | . 85 129 . 40 1939 304 Thermal 1392 | . 75 102 . 25 312 878 Explosive 242 | . . . . . 242 . Electromagnetic . | . . . . . . . Impact . | . . . . . . . Slashing . | . . . . . . . Piercing . | . . . . . . . Highest Corruption 1 | . . . . . . 1 Average Corruption 1 | . . . . . . 1 Corruption Purged . | . . . . . . . Corruption Blocked . | . . . . . . . Effects 2 | . . . . . . 2 Message Errors 1 | . . . . . . 1 Matter Fused 1 | . . . . . . 1 Overload Shots . | . . . . . . . Overflow Damage 10 | . . . . . . 10 Projectiles 10 | . . . . . . 10 Explosions . | . . . . . . . Melee . | . . . . . . . Knockbacks 3 | . . . . . 3 . Impact . | . . . . . . . Kinetic 3 | . . . . . 3 . Secondary . | . . . . . . . Self-Inflicted Damage . | . . . . . . . Shots . | . . . . . . . Rammed . | . . . . . . . Targets Rammed 1 | . . . . 1 . . Kicked 1 | . . . . 1 . . Crushed . | . . . . . . . Highest Temperature 859 | . 60 98 . 42 134 859 Average Temperature 151 | . 23 39 . 17 74 221 Received Heat Transfer 1128 | . 24 . . 6 666 432 Effects 27 | . . . . . . 27 Shutdowns 4 | . . . . . . 4 Energy Bleed 2 | . . . . . . 2 Interference 2 | . . . . . . 2 Matter Decay 3 | . . . . . . 3 Short Circuit 1 | . . . . . . 1 Damage (minor) 4 | . . . . . . 4 Damage (major) 9 | . . . . . . 9 Damage (core) 2 | . . . . . . 2 Siege Activations . | . . . . . . . Martial Activations . | . . . . . . . Shielding Activations . | . . . . . . . Robots Disrupted . | . . . . . . . Combat Hostiles . | . . . . . . . Robots Corrupted . | . . . . . . . Combat Hostiles . | . . . . . . . Parts Fried . | . . . . . . . Impact Corruptions . | . . . . . . . Robots Melted 1 | . . . . . . 1 Combat Hostiles 1 | . . . . . . 1 Parts Melted 4 | . . . . . 1 3 Heat Transferred 3089 | . 296 296 . 74 666 1757 Parts Sabotaged . | . . . . . . . Parts Stolen . | . . . . . . . Parts Stripped . | . . . . . . . Power Chain Reactions . | . . . . . . . Alert | -11 -10 -10 -10 -9 -8 -8 ------- Run | Yrd Mat Min Exi Min Mat Sto Maximum Alert Level 2 | . . . . . 2 1 Low Security (%) 77 | 100 100 100 . 100 59 78 Level 1 14 | . . . . . 22 21 Level 2 8 | . . . . . 18 . Level 3 . | . . . . . . . Level 4 . | . . . . . . . Level 5 . | . . . . . . . High Security . | . . . . . . . Max Security . | . . . . . . . Peak Influence 439 | . 40 61 . 50 439 253 Initial 176 | . . 11 . . . 176 Average 114 | . 6 28 . 5 173 174 Influence Increases 1596 | . 92 70 . 70 963 401 Destroy 0b10 Robot/C 1060 | . 60 60 . 60 640 240 Destroy 0b10 Robot/NC 50 | . . . . . 20 30 Destroy Leader 276 | . 20 10 . 10 164 72 Allied During Kill 6 | . . . . . 6 . Successful Hack 52 | . 12 . . . 17 23 Disable Machine 60 | . . . . . 45 15 Destroy Structure 47 | . . . . . 41 6 Lose Combat Pursuer 45 | . . . . . 30 15 Influence Decreases 1449 | . 62 99 1 70 544 673 Entered New Map 263 | . . 19 1 . . 243 Time Decay 946 | . 62 70 . 60 484 270 Lost Part 230 | . . 10 . 10 60 150 Lost Ally 10 | . . . . . . 10 Squads Dispatched 9 | . 1 . . . 7 1 Investigation 1 | . . . . . 1 . Extermination . | . . . . . . . Reinforcement 7 | . 1 . . . 5 1 Assault . | . . . . . . . Garrison 1 | . . . . . 1 . Intercept . | . . . . . . . Searches Triggered . | . . . . . . . Construction Impeded 1 | . . . . . 1 . Haulers Reinforced . | . . . . . . . Active Scanning Responses . | . . . . . . . Cargo Convoy Interrupts . | . . . . . . . Stealth | -11 -10 -10 -10 -9 -8 -8 --------- Run | Yrd Mat Min Exi Min Mat Sto Distress Signals 6 | . 1 . . . 4 1 Communications Jammed . | . . . . . . . Distress Signals . | . . . . . . . Times Spotted 79 | . 8 3 . 6 46 16 Peak Tracking Total 6 | . 3 3 . 3 6 5 Tactical Retreats 3 | . . . . . 2 1 Traps | -11 -10 -10 -10 -9 -8 -8 ------- Run | Yrd Mat Min Exi Min Mat Sto Traps Triggered 5 | . 4 . . . . 1 Indirectly . | . . . . . . . Trap Hack Attempts . | . . . . . . . Triggered . | . . . . . . . Disarmed . | . . . . . . . Reprogrammed . | . . . . . . . Reused . | . . . . . . . Traps Extracted . | . . . . . . . Installed . | . . . . . . . Triggered . | . . . . . . . Machines | -11 -10 -10 -10 -9 -8 -8 ---------- Run | Yrd Mat Min Exi Min Mat Sto Machines Disabled 4 | . . . . . 3 1 Max in Single Turn 1 | . . . . . 1 1 Machines Repaired . | . . . . . . . Machines Dismantled . | . . . . . . . Machines Sabotaged . | . . . . . . . Overloaded Fab Kills . | . . . . . . . Hacking | -11 -10 -10 -10 -9 -8 -8 --------- Run | Yrd Mat Min Exi Min Mat Sto Machines Accessed 18 | . 5 . . . 8 5 Terminals 14 | . 5 . . . 5 4 Fabricators . | . . . . . . . Repair Stations 3 | . . . . . 2 1 Recycling Units . | . . . . . . . Scanalyzers 1 | . . . . . 1 . Garrison Access . | . . . . . . . Total Hacks 46 | . 7 . . . 29 10 Successful 23 | . 3 . . . 16 4 Failed 22 | . 4 . . . 12 6 Catastrophic 4 | . 2 . . . . 2 Database Lockouts 1 | . . . . . 1 . Manual . | . . . . . . . Terminals 26 | . 7 . . . 11 8 Fabricators . | . . . . . . . Repair Stations 17 | . . . . . 15 2 Recycling Units . | . . . . . . . Scanalyzers 3 | . . . . . 3 . Garrison Access . | . . . . . . . Terminal Hacks 11 | . 3 . . . 5 3 Robot Analysis 1 | . 1 . . . . . Prototype ID Bank 1 | . . . . . 1 . Open Door 2 | . . . . . . 2 Branch Access Points 1 | . 1 . . . . . Locate Traps 2 | . . . . . 1 1 Recall Reinforcements 1 | . . . . . 1 . Zone Layout 3 | . 1 . . . 2 . Fabricator Hacks . | . . . . . . . Repair Station Hacks 10 | . . . . . 9 1 Scan Component 6 | . . . . . 5 1 Repair 4 | . . . . . 4 . Recycling Unit Hacks . | . . . . . . . Scanalyzer 2 | . . . . . 2 . Retrieve Study 2 | . . . . . 2 . Garrison Access Hacks . | . . . . . . . Unauthorized Hacks . | . . . . . . . Terminals . | . . . . . . . Fabricators . | . . . . . . . Repair Stations . | . . . . . . . Recycling Units . | . . . . . . . Scanalyzers . | . . . . . . . Garrison Access . | . . . . . . . Data Cores Recovered . | . . . . . . . Used . | . . . . . . . Hacking Detections 13 | . 4 . . . 5 4 Full Trace Events 1 | . . . . . 1 . Feedback Events . | . . . . . . . Feedback Blocked . | . . . . . . . Robot Schematics Acquired . | . . . . . . . Robots Built . | . . . . . . . Authchips . | . . . . . . . Time . | . . . . . . . Total Robot Build Rating . | . . . . . . . Part Schematics Acquired . | . . . . . . . Parts Built . | . . . . . . . Authchips . | . . . . . . . Time . | . . . . . . . Total Part Build Rating . | . . . . . . . Part Studies Acquired 2 | . . . . . 2 . Parts Repaired 4 | . . . . . 4 . Time 122 | . . . . . 122 . Parts Recycled . | . . . . . . . Recycled Matter . | . . . . . . . Retrieved Matter . | . . . . . . . Retrieved Components . | . . . . . . . Parts Scanalyzed . | . . . . . . . Part Schematics Acquired . | . . . . . . . Parts Damaged . | . . . . . . . Bothacking | -11 -10 -10 -10 -9 -8 -8 ------------ Run | Yrd Mat Min Exi Min Mat Sto Used RIF Installer . | . . . . . . . Robots Hacked . | . . . . . . . Non-combat . | . . . . . . . Combat . | . . . . . . . Robot Hacks Applied . | . . . . . . . Relay Couplers Released . | . . . . . . . Fabnet Peak Effective % . | . . . . . . . Robots Rewired . | . . . . . . . Allies Hacked . | . . . . . . . Hacks Repelled . | . . . . . . . Allies | -11 -10 -10 -10 -9 -8 -8 -------- Run | Yrd Mat Min Exi Min Mat Sto Total Allies 1 | . . . . 1 . . Largest Group 1 | . . . . 1 1 . Highest-Rated Group 31 | . . . . 31 31 . Highest-Rated Ally 31 | . . . . 31 31 . Total Orders . | . . . . . . . Ally Attacks 9 | . . . . 2 7 . Total Damage 105 | . . . . . 105 . Kills 4 | . . . . . 4 . Allies Corrupted . | . . . . . . . Allies Melted . | . . . . . . . Intel | -11 -10 -10 -10 -9 -8 -8 ------- Run | Yrd Mat Min Exi Min Mat Sto Active Infowar (turns) . | . . . . . . . Robot Analysis Total 1 | . 1 . . . . . Derelict Logs Recovered 2 | . . 1 . 1 . . Drone Launches 4 | . . . . . . 4 Drone Recoveries 3 | . . . . . . 3 Exploration | -11 -10 -10 -10 -9 -8 -8 ------------- Run | Yrd Mat Min Exi Min Mat Sto Turns Passed 3308 | 56 392 155 36 574 1512 583 Spaces Moved 1821 | 37 280 94 31 276 861 242 Core 16 | 7 4 . . . . 5 Treads 21 | . . . . . . 21 Legs 1784 | 30 276 94 31 276 861 216 Wheels . | . . . . . . . Hover . | . . . . . . . Flight . | . . . . . . . Fastest Speed 50 | 50 120 120 120 120 105 105 Average Speed 131 | 120 123 120 120 177 111 169 Slowest Speed 450 | 200 300 120 120 190 183 450 Overloaded Moves . | . . . . . . . Propulsion Burnouts . | . . . . . . . Robots Hopped . | . . . . . . . Potential Cave-ins . | . . . . . . . Cave-ins Triggered . | . . . . . . . Exploration Rate (%) 32 | 3 47 20 8 53 63 31 Regions Visited 6 Branch Regions 4 Pre-discovered Areas . | . . . . . . . Known Exits Taken 1 | . 1 . . . . . Unknown Exits Taken 5 | 1 . 1 1 1 1 . Scrap Searched 3 | . . 1 . 2 . . Spaces Dug . | . . . . . . . Terrain Destroyed 53 | . . . . . 47 6 Melee . | . . . . . . . Projectile 16 | . . . . . 10 6 AOE 37 | . . . . . 37 . Terrain Rammed . | . . . . . . . Walls Destroyed . | . . . . . . . Machines Disabled . | . . . . . . . Actions | -11 -10 -10 -10 -9 -8 -8 --------- Run | Yrd Mat Min Exi Min Mat Sto Total 2403 | 45 304 111 30 349 1231 333 Wait 266 | 1 1 . . 62 199 3 Move 1815 | 36 279 93 30 275 860 242 Hop . | . . . . . . . Pick Up 39 | 2 6 2 . 1 20 8 Fast Attach 33 | 6 9 . . 1 11 6 Attach 20 | . . 1 . . 8 11 Detach . | . . . . . . . Swap 24 | . . 1 . 1 17 5 Drop 33 | . . 1 . 2 23 7 Fire 172 | . 9 13 . 6 93 51 Melee . | . . . . . . . Ram . | . . . . . . . Kick 1 | . . . . 1 . . Crush . | . . . . . . . Escape Stasis . | . . . . . . . Rewire . | . . . . . . . Trap . | . . . . . . . Miscellaneous . | . . . . . . . Route ------- -11/Scrapyard -10/Materials (discovered 2 exits: [*Mat] / *Min) -10/Mines -10/Exiles -9/Mines -8/Materials (discovered 2 exits: [*Fac] / *Sto) -8/Storage History --------- Turn | Location | Event 31 | -11/Scrapyard | Discovered new exit (range 16) 57 | -11/Scrapyard | Entered Materials 215 | -10/Materials | Discovered new exit (range 5) 269 | -10/Materials | Identified exit to Mines 351 | -10/Materials | Build established: Mutant 449 | -10/Materials | Entered Mines 450 | -10/Mines | Assembled infested the area 496 | -10/Mines | Learned Materials stockpile data 500 | -10/Mines | Found DCF Scrap (12 items) 518 | -10/Mines | Met 8R-AWN 534 | -10/Mines | Received a Rocket Launcher from a helpful Derelict 598 | -10/Mines | Discovered new exit (range 5) 604 | -10/Mines | Entered Exiles 625 | -10/Exiles | Discovered new exit (range 14) 640 | -10/Exiles | Entered Mines 643 | -9/Mines | Met a Derelict bent on vengeance 842 | -9/Mines | Learned Materials trap positions 1129 | -9/Mines | Received a Mining Laser from a helpful Derelict 1199 | -9/Mines | Discovered new exit (range 11) 1214 | -9/Mines | Entered Materials 1214 | -8/Materials | Accompanied by 1 ally 1214 | -8/Materials | Evolved 4 slots: Propulsion x2, Utility x2 1215 | -8/Materials | Loaded intel: 15 trap records 1231 | -8/Materials | Central database locked down 1725 | -8/Materials | Repaired Aluminum Leg+ 1752 | -8/Materials | Repaired Aluminum Leg+ 1780 | -8/Materials | Repaired Aluminum Leg+ 1801 | -8/Materials | Build established: Scavenger-Mutant 2094 | -8/Materials | Discovered new exit (range 16) 2394 | -8/Materials | Discovered new exit (range 5) 2413 | -8/Materials | Garrison activated, responded to threat 2421 | -8/Materials | Build established: Mutant 2678 | -8/Materials | Repaired Imp. Medium Armor Plating 2726 | -8/Materials | Entered Storage 2828 | -8/Storage | Build established: Scavenger-Mutant 2921 | -8/Storage | Core integrity fell below 50% 2959 | -8/Storage | Core integrity fell below 20% 3017 | -8/Storage | Lost 3 parts (1p2n) 3244 | -8/Storage | Lost 7 parts (4n2u1w) 3309 | -8/Storage | Destroyed by G-47 Trooper with Particle Gun Last Messages --------------- R-06 Scavenger destroyed. Acquired 3 matter. K-01 Serf collects debris. Acquired Lgt. Treads. K-01 Serf collects debris. Dropped Med. Storage Unit. Acquired 30 matter. K-01 Serf collects debris. Acquired Shock Bomb Launcher. Acquired Hvy. Assault Rifle. Acquired Minigun. Acquired Hvy. Assault Rifle. Critical hit (Burn: +37). G-47 Trooper destroyed. Switching to secondary target: G-47 Trooper. Lgt. Armor Plating destroyed. Hvy. Assault Rifle destroyed. Imp. Ion Engine destroyed. G-47 Trooper destroyed. Switching to secondary target: G-47 Trooper. Map ----- +----------------------------------------------------+ | ???????????????????# # #????????? | | ???????????????????# |=# #????????? | | ???????????????????#!*=# """ #?#"""##?? | | ???????????????????#[%!# """ #?? T#?? | | ???????????????????# !=+=""" ! #####+#??? | | ???????????????????#%!]#=""" + #??? | | ???????????????????##[ #%""" ##### #??? | | ???????????????????###=# ]= #???# #??? | | ?????????????????????#%##########???# #??? | | ?????????????????????# ## "?????????# #??? | | ?????????????????????# ##" "????????# #??? | | ?????????????????????# #?? ???????# #??? | | ?????????????????????# #???"" ??????# #??? | | ?????????????????????# #????" #?????# #??? | | ?????????????????????+ +????? #?????# #??? | | ?????????????????????# #????????????# #??? | | ?????????????????????# #?????????#### #??? | | ?????????????????????# #?????????# #??? | | ?????????????????????# #?####????#%####??? | | ?????????????????????# #?# ?#### #?????? | | ?????????????????????# #?# ??# #####?? | | ?????????????????????# #?#==??# " =#?? | | ????????????# ###### ###+####[ #T###?? | | ?????????+ *! %*%! [ ###???? | | ????????????# ######+##/##+##+##+##????? | | ????????????????# %%!@# % #????? | | ????????????????# % !g= + / #????? | | ????????????????# # ! #????? | | ????????????????# #= #????? | | ????????????????#####################????? | | | | | | | | | | | | | | | | | | | | | | | | | | | | | | | | | | | | | | | | | +----------------------------------------------------+ Best States ------------- Heat Dissipation 31 Energy Generation 12 Energy Capacity 265 Matter Stores 450 Matter Capacity 450 Sight Range 16 Terrain Scan Density 10 Base Temperature (-) 100 Armor Coverage 375 Evasion (%) 63 Recoil Reduction 4 Item Schematics ----------------- None Robot Schematics ------------------ None Fabricated ------------ Nothing Repaired ---------- Aluminum Leg | 6% | -8/Materials Aluminum Leg | 31% | -8/Materials Aluminum Leg | 36% | -8/Materials Imp. Medium Armor Plating | 3% | -8/Materials Studied --------- Aluminum Leg | -8/Materials | Hacked Ion Engine | -8/Materials | Hacked Alien Tech Used ----------------- None Achievements -------------- GoHome() Heavy Suspicion Tourist Challenges ------------ None Game ------ Seed NavigationDispersionCycler Manual? 0 Play Time 01:05:14 Cumulative 6.7 hours Start 2026.03.13 @ 09:13:47 End 2026.03.13 @ 11:21:57 Sessions 1 Manual Loads 0 Difficulty Rogue Special Mode None Game No. 5 Rogue 5 Adventurer 0 Explorer 0 Win Type - Total 0 Types 0/0/0/0/0/0/0/0/0/0 Lore% 5 Gallery% 9 Achievement% 8 Wizard Run 0 Options --------- Layout 1 ASCII 0 Keyboard 0 Movement Mouse Keybinds 0 Fullscreen 2 Font 24/Proggy Map View 50x35 Zoom Use 0% Tactical HUD 0 Map Filters NONE Filters NONE Steam 1 RUN: f615d84a-6fb7-4846-8a42-9eaf96e8e412